[Event "*** Titled Tuesday Blitz"]
[Site "Chess.com"]
[Date "2020.05.05"]
[Round "3"]
[White "Opening_Prep"]
[Black "Haykoooo0o"]
[Result "1/2-1/2"]
[WhiteElo "2323"]
[BlackElo "2523"]
[TimeControl "180+1"]
[EndTime "10:31:39 PDT"]
[Termination "Game drawn - insufficient material"]

1. d4 {[%clk 0:03:00.9]} 1... Nf6 {[%clk 0:02:59.5]} 2. Nc3 {[%clk 0:02:59.9]}
2... d5 {[%clk 0:02:59]} 3. Bf4 {[%clk 0:02:59.8]} 3... e6 {[%clk 0:02:57.6]} 4.
e3 {[%clk 0:02:59.8]} 4... Bd6 {[%clk 0:02:55.9]} 5. Nf3 {[%clk 0:02:55]} 5...
O-O {[%clk 0:02:55.2]} 6. Bd3 {[%clk 0:02:55]} 6... Bxf4 {[%clk 0:02:53.9]} 7.
exf4 {[%clk 0:02:55.1]} 7... c5 {[%clk 0:02:54.5]} 8. dxc5 {[%clk 0:02:51]} 8...
Qc7 {[%clk 0:02:53.8]} 9. Ne2 {[%clk 0:02:42.7]} 9... Qxc5 {[%clk 0:02:52]} 10.
O-O {[%clk 0:02:42.8]} 10... Nc6 {[%clk 0:02:52.1]} 11. c3 {[%clk 0:02:42.6]}
11... b6 {[%clk 0:02:48.6]} 12. Ned4 {[%clk 0:02:42]} 12... Bb7 {[%clk
0:02:48.8]} 13. Qe2 {[%clk 0:02:37]} 13... Rfe8 {[%clk 0:02:47.7]} 14. Rfe1
{[%clk 0:02:33.8]} 14... Qd6 {[%clk 0:02:43.6]} 15. g3 {[%clk 0:02:31.4]} 15...
a6 {[%clk 0:02:43.5]} 16. Rad1 {[%clk 0:02:29.9]} 16... b5 {[%clk 0:02:38.5]}
17. a3 {[%clk 0:02:27.9]} 17... Rac8 {[%clk 0:02:34.9]} 18. h4 {[%clk 0:02:27]}
18... Qe7 {[%clk 0:02:23.4]} 19. Nxc6 {[%clk 0:02:25.2]} 19... Bxc6 {[%clk
0:02:22.4]} 20. f5 {[%clk 0:02:18.6]} 20... Qd6 {[%clk 0:02:15.7]} 21. fxe6
{[%clk 0:02:15.6]} 21... fxe6 {[%clk 0:02:15.7]} 22. Qe5 {[%clk 0:02:12.4]}
22... Qxe5 {[%clk 0:02:14.2]} 23. Nxe5 {[%clk 0:02:13.3]} 23... Nd7 {[%clk
0:02:12.2]} 24. f4 {[%clk 0:02:04.2]} 24... Nxe5 {[%clk 0:02:11]} 25. Rxe5
{[%clk 0:02:05.1]} 25... Bd7 {[%clk 0:02:05.4]} 26. Kf2 {[%clk 0:02:05]} 26...
Rf8 {[%clk 0:01:58.8]} 27. Ke3 {[%clk 0:02:04.5]} 27... a5 {[%clk 0:01:55.2]}
28. Kd4 {[%clk 0:02:04.3]} 28... Rc7 {[%clk 0:01:46.9]} 29. Rde1 {[%clk
0:01:59.7]} 29... Rb8 {[%clk 0:01:45.9]} 30. f5 {[%clk 0:01:48]} 30... exf5
{[%clk 0:01:46.8]} 31. Rxd5 {[%clk 0:01:47.6]} 31... Rf8 {[%clk 0:01:12.2]} 32.
Re7 {[%clk 0:01:30.3]} 32... Rf7 {[%clk 0:01:12.2]} 33. Rxf7 {[%clk 0:01:30.5]}
33... Kxf7 {[%clk 0:01:13.1]} 34. Bxf5 {[%clk 0:01:30.7]} 34... Rc4+ {[%clk
0:01:03.5]} 35. Kd3 {[%clk 0:01:18.3]} 35... Bc6 {[%clk 0:01:03.7]} 36. Rd4
{[%clk 0:01:14.5]} 36... Rc5 {[%clk 0:01:02.6]} 37. Rf4 {[%clk 0:00:55.4]} 37...
g6 {[%clk 0:00:57.7]} 38. Bg4+ {[%clk 0:00:49.7]} 38... Ke7 {[%clk 0:00:55.6]}
39. b4 {[%clk 0:00:48.5]} 39... Rd5+ {[%clk 0:00:51.7]} 40. Rd4 {[%clk 0:00:48]}
40... axb4 {[%clk 0:00:50.5]} 41. axb4 {[%clk 0:00:46.9]} 41... Re5 {[%clk
0:00:48.6]} 42. c4 {[%clk 0:00:39]} 42... bxc4+ {[%clk 0:00:48]} 43. Kxc4 {[%clk
0:00:39.9]} 43... Bb5+ {[%clk 0:00:47.8]} 44. Kc3 {[%clk 0:00:36.8]} 44... Re3+
{[%clk 0:00:48.3]} 45. Kd2 {[%clk 0:00:34.5]} 45... Rxg3 {[%clk 0:00:48.5]} 46.
h5 {[%clk 0:00:32.4]} 46... g5 {[%clk 0:00:44.2]} 47. h6 {[%clk 0:00:27.6]}
47... Kf6 {[%clk 0:00:42.7]} 48. Bd1 {[%clk 0:00:21.9]} 48... Ke5 {[%clk
0:00:40.4]} 49. Rd8 {[%clk 0:00:20.6]} 49... Rh3 {[%clk 0:00:33.9]} 50. Rb8
{[%clk 0:00:18.5]} 50... Bc4 {[%clk 0:00:31.9]} 51. Rc8 {[%clk 0:00:16.1]} 51...
Be6 {[%clk 0:00:30.8]} 52. Rc5+ {[%clk 0:00:16.1]} 52... Kf4 {[%clk 0:00:26.3]}
53. b5 {[%clk 0:00:16]} 53... Rh2+ {[%clk 0:00:16.5]} 54. Kc3 {[%clk 0:00:15.7]}
54... Rh1 {[%clk 0:00:13]} 55. Bc2 {[%clk 0:00:15.3]} 55... Rh3+ {[%clk
0:00:10.8]} 56. Kd4 {[%clk 0:00:13.9]} 56... Bg4 {[%clk 0:00:07.9]} 57. b6
{[%clk 0:00:13.4]} 57... Rh2 {[%clk 0:00:06.9]} 58. b7 {[%clk 0:00:12.4]} 58...
Rd2+ {[%clk 0:00:07.4]} 59. Kc3 {[%clk 0:00:12.4]} 59... Rd8 {[%clk 0:00:07.9]}
60. Bxh7 {[%clk 0:00:12.2]} 60... Bf3 {[%clk 0:00:07.2]} 61. Rf5+ {[%clk
0:00:10.3]} 61... Kg3 {[%clk 0:00:06.6]} 62. Rf7 {[%clk 0:00:10.2]} 62... Rb8
{[%clk 0:00:06.2]} 63. Bg6 {[%clk 0:00:10.3]} 63... Bxb7 {[%clk 0:00:03.9]} 64.
h7 {[%clk 0:00:08.7]} 64... Bf3 {[%clk 0:00:04.8]} 65. Rg7 {[%clk 0:00:07.9]}
65... Bd5 {[%clk 0:00:04]} 66. Rg8 {[%clk 0:00:07.4]} 66... Rxg8 {[%clk
0:00:03.4]} 67. hxg8=Q {[%clk 0:00:07.2]} 67... Bxg8 {[%clk 0:00:04.3]} 68. Kd4
{[%clk 0:00:07.7]} 68... Kf4 {[%clk 0:00:05.1]} 69. Bh5 {[%clk 0:00:07.9]} 69...
Be6 {[%clk 0:00:05.3]} 70. Kd3 {[%clk 0:00:08]} 70... Bg4 {[%clk 0:00:05.8]} 71.
Bf7 {[%clk 0:00:07.6]} 71... Kf3 {[%clk 0:00:05.2]} 72. Kd2 {[%clk 0:00:06.2]}
72... Kf2 {[%clk 0:00:04.1]} 73. Bg6 {[%clk 0:00:06.3]} 73... Bf3 {[%clk
0:00:04.4]} 74. Bf5 {[%clk 0:00:06.4]} 74... Bd5 {[%clk 0:00:04.5]} 75. Bg4
{[%clk 0:00:05.9]} 75... Bf3 {[%clk 0:00:04.5]} 76. Bf5 {[%clk 0:00:06.2]} 76...
Bg2 {[%clk 0:00:03.9]} 77. Bg4 {[%clk 0:00:06.3]} 77... Be4 {[%clk 0:00:04.2]}
78. Be6 {[%clk 0:00:06.3]} 78... Bc6 {[%clk 0:00:04.3]} 79. Bg4 {[%clk
0:00:06.5]} 79... Be8 {[%clk 0:00:04.8]} 80. Be6 {[%clk 0:00:07]} 80... Bh5
{[%clk 0:00:05.3]} 81. Bf5 {[%clk 0:00:07.3]} 81... Bf3 {[%clk 0:00:05.7]} 82.
Be6 {[%clk 0:00:07.4]} 82... Kg3 {[%clk 0:00:06.2]} 83. Bf5 {[%clk 0:00:07.6]}
83... Bg4 {[%clk 0:00:06.7]} 84. Bg6 {[%clk 0:00:08.1]} 84... Be6 {[%clk
0:00:06.8]} 85. Bh5 {[%clk 0:00:07.8]} 85... Kh4 {[%clk 0:00:06.8]} 86. Be2
{[%clk 0:00:08]} 86... g4 {[%clk 0:00:07.3]} 87. Bxg4 {[%clk 0:00:07.9]} 1/2-1/2

[Event "*** Titled Tuesday Blitz"]
[Site "Chess.com"]
[Date "2020.05.05"]
[Round "3"]
[White "Harut-1998"]
[Black "chegueps"]
[Result "1-0"]
[WhiteElo "2726"]
[BlackElo "2519"]
[TimeControl "180+1"]
[EndTime "10:31:42 PDT"]
[Termination "Harut-1998 won by resignation"]

1. d4 {[%clk 0:03:00.9]} 1... Nf6 {[%clk 0:02:55.2]} 2. c4 {[%clk 0:03:00.2]}
2... g6 {[%clk 0:02:51.1]} 3. Nc3 {[%clk 0:02:58.2]} 3... Bg7 {[%clk 0:02:52]}
4. Nf3 {[%clk 0:02:54.7]} 4... d6 {[%clk 0:02:52.1]} 5. Bg5 {[%clk 0:02:54.4]}
5... O-O {[%clk 0:02:52.2]} 6. e3 {[%clk 0:02:52.4]} 6... a5 {[%clk 0:02:46.3]}
7. h3 {[%clk 0:02:47.7]} 7... Nbd7 {[%clk 0:02:42.9]} 8. Be2 {[%clk 0:02:46.4]}
8... c6 {[%clk 0:02:22.2]} 9. O-O {[%clk 0:02:44.8]} 9... Qc7 {[%clk 0:02:15.7]}
10. Qc2 {[%clk 0:02:42.1]} 10... e5 {[%clk 0:02:14.9]} 11. dxe5 {[%clk 0:02:39]}
11... dxe5 {[%clk 0:02:15.8]} 12. Na4 {[%clk 0:02:31.5]} 12... Re8 {[%clk
0:02:01.8]} 13. Rfd1 {[%clk 0:02:26.2]} 13... Nf8 {[%clk 0:02:01.5]} 14. Rac1
{[%clk 0:02:21.2]} 14... Ne6 {[%clk 0:01:58.2]} 15. Bh4 {[%clk 0:02:18.6]} 15...
Nd7 {[%clk 0:01:49.6]} 16. c5 {[%clk 0:02:11.3]} 16... Bf8 {[%clk 0:01:30.5]}
17. Nb6 {[%clk 0:02:01.4]} 17... Nxb6 {[%clk 0:01:27.6]} 18. cxb6 {[%clk
0:02:02.3]} 18... Qxb6 {[%clk 0:01:28.2]} 19. Nxe5 {[%clk 0:02:02.6]} 19... Qc5
{[%clk 0:01:13.1]} 20. Ng4 {[%clk 0:01:55.4]} 20... Qxc2 {[%clk 0:00:42.7]} 21.
Rxc2 {[%clk 0:01:56.3]} 21... Bg7 {[%clk 0:00:31.6]} 22. Nf6+ {[%clk 0:01:53.8]}
22... Bxf6 {[%clk 0:00:31.9]} 23. Bxf6 {[%clk 0:01:54.7]} 23... Nc7 {[%clk
0:00:29.5]} 24. Rcd2 {[%clk 0:01:51]} 24... Be6 {[%clk 0:00:28.4]} 25. a3 {[%clk
0:01:44.1]} 25... Bb3 {[%clk 0:00:28.4]} 26. Rc1 {[%clk 0:01:42.6]} 26... Nd5
{[%clk 0:00:28.8]} 27. Bd4 {[%clk 0:01:36.5]} 27... a4 {[%clk 0:00:28.7]} 28.
Bf3 {[%clk 0:01:31.2]} 28... Rad8 {[%clk 0:00:25.3]} 29. Bc5 {[%clk 0:01:24.4]}
29... Nc7 {[%clk 0:00:19.5]} 30. Rxd8 {[%clk 0:01:18.6]} 30... Rxd8 {[%clk
0:00:20.4]} 31. Bb4 {[%clk 0:01:15.7]} 31... Ne6 {[%clk 0:00:18.3]} 32. h4
{[%clk 0:01:13.2]} 32... h5 {[%clk 0:00:18]} 33. Be7 {[%clk 0:01:08.9]} 33...
Rd7 {[%clk 0:00:17.4]} 34. Bf6 {[%clk 0:01:07.1]} 34... Kf8 {[%clk 0:00:11.8]}
35. Kh2 {[%clk 0:01:04.9]} 35... Ke8 {[%clk 0:00:11.7]} 36. g4 {[%clk
0:00:58.7]} 36... hxg4 {[%clk 0:00:09.5]} 37. Bxg4 {[%clk 0:00:59.6]} 37... Rd2
{[%clk 0:00:10.2]} 38. Kg3 {[%clk 0:00:56]} 38... Kd7 {[%clk 0:00:05.6]} 39. h5
{[%clk 0:00:53.7]} 39... gxh5 {[%clk 0:00:05]} 40. Bxh5 {[%clk 0:00:54.6]} 40...
Nc7 {[%clk 0:00:05.3]} 41. Bc3 {[%clk 0:00:52.1]} 41... Rd6 {[%clk 0:00:04.8]}
42. Rh1 {[%clk 0:00:49]} 42... Nb5 {[%clk 0:00:02]} 43. Be5 {[%clk 0:00:47.1]}
43... Rd2 {[%clk 0:00:02.2]} 44. Bg4+ {[%clk 0:00:44.9]} 44... Be6 {[%clk
0:00:02.4]} 45. Rd1 {[%clk 0:00:40.7]} 45... Rxd1 {[%clk 0:00:02]} 46. Bxd1
{[%clk 0:00:41.6]} 46... Bb3 {[%clk 0:00:02.4]} 47. Be2 {[%clk 0:00:39.4]} 47...
Ke6 {[%clk 0:00:02.2]} 48. Kf4 {[%clk 0:00:35.9]} 48... f6 {[%clk 0:00:02.5]}
49. Bb8 {[%clk 0:00:33.5]} 49... Nd6 {[%clk 0:00:01.3]} 50. Bg4+ {[%clk
0:00:31]} 50... Ke7 {[%clk 0:00:01.4]} 51. Ba7 {[%clk 0:00:28.7]} 51... Nc4
{[%clk 0:00:01.7]} 52. Bc5+ {[%clk 0:00:26.6]} 52... Kf7 {[%clk 0:00:01.7]} 53.
Bd4 {[%clk 0:00:26.6]} 53... Nd2 {[%clk 0:00:02.2]} 54. Bc8 {[%clk 0:00:23]}
54... Nc4 {[%clk 0:00:03.1]} 55. Bxb7 {[%clk 0:00:20.8]} 55... Na5 {[%clk
0:00:02.8]} 56. Ba8 {[%clk 0:00:18.7]} 56... Bd5 {[%clk 0:00:02.2]} 57. Bc3
{[%clk 0:00:18.6]} 57... Nc4 {[%clk 0:00:01.6]} 58. e4 {[%clk 0:00:18.7]} 58...
Be6 {[%clk 0:00:01.9]} 59. Bxc6 {[%clk 0:00:16.4]} 59... Nb6 {[%clk 0:00:01.6]}
60. Bd4 {[%clk 0:00:16.3]} 60... Nc4 {[%clk 0:00:01.7]} 61. Bxa4 {[%clk
0:00:15.3]} 61... Nd6 {[%clk 0:00:01.8]} 62. Bc6 {[%clk 0:00:13]} 62... Nc4
{[%clk 0:00:02]} 63. Bd5 {[%clk 0:00:12.8]} 63... Nd2 {[%clk 0:00:02.3]} 64.
Bxe6+ {[%clk 0:00:12.4]} 64... Kxe6 {[%clk 0:00:03.2]} 65. a4 {[%clk 0:00:11.9]}
65... Nb3 {[%clk 0:00:03.7]} 66. Be3 {[%clk 0:00:12]} 66... Na5 {[%clk
0:00:04.3]} 67. b4 {[%clk 0:00:11.1]} 67... Nc4 {[%clk 0:00:04.7]} 68. a5 {[%clk
0:00:11.1]} 68... Nd6 {[%clk 0:00:04.2]} 69. Bc5 {[%clk 0:00:11]} 69... Nb5
{[%clk 0:00:04.7]} 70. a6 {[%clk 0:00:11.2]} 70... Nc7 {[%clk 0:00:05.3]} 71. a7
{[%clk 0:00:11.5]} 71... Na8 {[%clk 0:00:06.2]} 72. b5 {[%clk 0:00:11.7]} 72...
Kd7 {[%clk 0:00:06.8]} 73. b6 {[%clk 0:00:12]} 73... Kc8 {[%clk 0:00:05.7]} 74.
Be3 {[%clk 0:00:12.5]} 74... Kb7 {[%clk 0:00:06.4]} 75. e5 {[%clk 0:00:12.9]}
75... fxe5+ {[%clk 0:00:06.4]} 76. Kxe5 {[%clk 0:00:13.8]} 76... Kc8 {[%clk
0:00:05.7]} 77. f4 {[%clk 0:00:13.7]} 77... Kb7 {[%clk 0:00:06.6]} 78. f5 {[%clk
0:00:14.1]} 78... Ka6 {[%clk 0:00:06.9]} 79. f6 {[%clk 0:00:14.4]} 79... Kb7
{[%clk 0:00:07.8]} 80. f7 {[%clk 0:00:14.8]} 80... Nxb6 {[%clk 0:00:08.7]} 81.
Bxb6 {[%clk 0:00:14.1]} 81... Ka8 {[%clk 0:00:08.9]} 82. f8=Q+ {[%clk
0:00:13.9]} 82... Kb7 {[%clk 0:00:09.8]} 83. a8=Q+ {[%clk 0:00:14]} 1-0

[Event "*** Titled Tuesday Blitz"]
[Site "Chess.com"]
[Date "2020.05.05"]
[Round "3"]
[White "abhidabhi"]
[Black "Mili_Brizzi"]
[Result "1-0"]
[WhiteElo "2767"]
[BlackElo "2442"]
[TimeControl "180+1"]
[EndTime "10:31:47 PDT"]
[Termination "abhidabhi won by resignation"]

1. e4 {[%clk 0:03:00.9]} 1... e5 {[%clk 0:02:57.7]} 2. Nf3 {[%clk 0:03:00.9]}
2... Nc6 {[%clk 0:02:57.5]} 3. Bc4 {[%clk 0:03:01.4]} 3... Nf6 {[%clk
0:02:54.8]} 4. d3 {[%clk 0:03:01.8]} 4... Be7 {[%clk 0:02:51.5]} 5. O-O {[%clk
0:03:00.3]} 5... O-O {[%clk 0:02:50.7]} 6. h3 {[%clk 0:02:58.5]} 6... d6 {[%clk
0:02:45.9]} 7. a4 {[%clk 0:02:58.4]} 7... Be6 {[%clk 0:02:42.1]} 8. Nbd2 {[%clk
0:02:55.9]} 8... Qd7 {[%clk 0:02:39.8]} 9. Re1 {[%clk 0:02:54.8]} 9... a6 {[%clk
0:02:37.5]} 10. c3 {[%clk 0:02:48.3]} 10... h6 {[%clk 0:02:34.1]} 11. a5 {[%clk
0:02:46.9]} 11... Rfe8 {[%clk 0:02:31.3]} 12. Nf1 {[%clk 0:02:44.7]} 12... Bf8
{[%clk 0:02:23.2]} 13. Ng3 {[%clk 0:02:44.5]} 13... d5 {[%clk 0:02:19]} 14. exd5
{[%clk 0:02:43.8]} 14... Bxd5 {[%clk 0:02:16.1]} 15. Bxd5 {[%clk 0:02:36.8]}
15... Qxd5 {[%clk 0:02:10.8]} 16. Ne4 {[%clk 0:02:27]} 16... Be7 {[%clk
0:01:55.5]} 17. Qc2 {[%clk 0:01:49]} 17... Rad8 {[%clk 0:01:52.4]} 18. Nxf6+
{[%clk 0:01:32.1]} 18... Bxf6 {[%clk 0:01:50.9]} 19. Re3 {[%clk 0:01:32]} 19...
Re6 {[%clk 0:01:38.9]} 20. b4 {[%clk 0:01:30.4]} 20... Nxb4 {[%clk 0:01:15.1]}
21. cxb4 {[%clk 0:01:29.3]} 21... e4 {[%clk 0:01:12.4]} 22. Bb2 {[%clk
0:00:53.9]} 22... exf3 {[%clk 0:00:50.6]} 23. Rxf3 {[%clk 0:00:54.2]} 23... Bxb2
{[%clk 0:00:34.5]} 24. Qxb2 {[%clk 0:00:55.1]} 24... Rde8 {[%clk 0:00:30.1]} 25.
Rg3 {[%clk 0:00:52.2]} 25... f6 {[%clk 0:00:26.3]} 26. Rc1 {[%clk 0:00:50]}
26... c6 {[%clk 0:00:25.3]} 27. Kh2 {[%clk 0:00:49]} 27... Qd6 {[%clk
0:00:23.6]} 28. Rc2 {[%clk 0:00:47.6]} 28... Re1 {[%clk 0:00:21.5]} 29. Qb3+
{[%clk 0:00:46.9]} 29... Qe6 {[%clk 0:00:20.9]} 30. Qc3 {[%clk 0:00:44.4]} 30...
Qe5 {[%clk 0:00:20.6]} 31. Qc4+ {[%clk 0:00:43.7]} 31... Qe6 {[%clk 0:00:20.8]}
32. Qf4 {[%clk 0:00:42.8]} 32... Kh7 {[%clk 0:00:18.3]} 33. h4 {[%clk
0:00:36.7]} 33... Re7 {[%clk 0:00:17.9]} 34. h5 {[%clk 0:00:36.5]} 34... Qe5
{[%clk 0:00:17.1]} 35. Qg4 {[%clk 0:00:33.8]} 35... Qg5 {[%clk 0:00:16.3]} 36.
Qh3 {[%clk 0:00:32.4]} 36... Qe5 {[%clk 0:00:16]} 37. d4 {[%clk 0:00:30.5]}
37... Qd5 {[%clk 0:00:12.7]} 38. Qg4 {[%clk 0:00:29.3]} 38... Qg5 {[%clk
0:00:12]} 39. Qf3 {[%clk 0:00:29.4]} 39... Qd5 {[%clk 0:00:11.1]} 40. Qxd5
{[%clk 0:00:17.9]} 40... cxd5 {[%clk 0:00:10.5]} 41. Rc5 {[%clk 0:00:18.2]}
41... Rd7 {[%clk 0:00:08.6]} 42. Re3 {[%clk 0:00:16.8]} 42... Rd1 {[%clk
0:00:08.7]} 43. Re8 {[%clk 0:00:15]} 43... g6 {[%clk 0:00:08.1]} 44. hxg6+
{[%clk 0:00:10.8]} 44... Kxg6 {[%clk 0:00:08.3]} 45. Rg8+ {[%clk 0:00:10.5]}
45... Kf5 {[%clk 0:00:08.6]} 46. Rh8 {[%clk 0:00:09.4]} 46... Rxd4 {[%clk
0:00:08.5]} 47. Rxh6 {[%clk 0:00:08.6]} 47... Rxb4 {[%clk 0:00:08.5]} 48. Rh5+
{[%clk 0:00:09]} 48... Ke6 {[%clk 0:00:08.8]} 49. Rh6 {[%clk 0:00:08.5]} 49...
d4 {[%clk 0:00:08.5]} 50. Rc1 {[%clk 0:00:05.9]} 50... d3 {[%clk 0:00:08.5]} 51.
Re1+ {[%clk 0:00:06.2]} 51... Kf5 {[%clk 0:00:06.8]} 52. Rh5+ {[%clk 0:00:05.8]}
52... Kg6 {[%clk 0:00:06.8]} 53. Rc5 {[%clk 0:00:05]} 53... d2 {[%clk
0:00:06.7]} 54. Rd1 {[%clk 0:00:05.5]} 54... Rbd4 {[%clk 0:00:06.8]} 55. Rc2
{[%clk 0:00:05.6]} 55... Kf5 {[%clk 0:00:06.1]} 56. Kg3 {[%clk 0:00:06.2]} 56...
R7d5 {[%clk 0:00:06.2]} 57. f3 {[%clk 0:00:06.4]} 57... Rxa5 {[%clk 0:00:04.8]}
58. Rdxd2 {[%clk 0:00:06.8]} 58... Rxd2 {[%clk 0:00:05.1]} 59. Rxd2 {[%clk
0:00:07.7]} 59... Rb5 {[%clk 0:00:05.4]} 60. Rd4 {[%clk 0:00:05]} 60... b6
{[%clk 0:00:05.3]} 61. Kh4 {[%clk 0:00:04.7]} 61... a5 {[%clk 0:00:05.1]} 62.
g4+ {[%clk 0:00:05]} 62... Kg6 {[%clk 0:00:06]} 63. f4 {[%clk 0:00:04.7]} 63...
Rb4 {[%clk 0:00:06.4]} 64. f5+ {[%clk 0:00:04]} 64... Kf7 {[%clk 0:00:05.8]} 65.
Rd7+ {[%clk 0:00:04.3]} 65... Kf8 {[%clk 0:00:06.2]} 66. Ra7 {[%clk 0:00:04.5]}
66... a4 {[%clk 0:00:06.1]} 67. Kh5 {[%clk 0:00:05.1]} 67... a3 {[%clk
0:00:05.3]} 68. Rxa3 {[%clk 0:00:04.3]} 68... b5 {[%clk 0:00:04.1]} 69. Ra6
{[%clk 0:00:03.3]} 69... Kf7 {[%clk 0:00:02.9]} 70. Ra7+ {[%clk 0:00:03.7]}
70... Kf8 {[%clk 0:00:03.3]} 71. g5 {[%clk 0:00:04.1]} 71... Rf4 {[%clk
0:00:03.1]} 72. Kg6 {[%clk 0:00:03.8]} 72... fxg5 {[%clk 0:00:02.7]} 73. f6
{[%clk 0:00:04.2]} 73... Ke8 {[%clk 0:00:02.8]} 74. f7+ {[%clk 0:00:02.8]} 74...
Kf8 {[%clk 0:00:02.2]} 75. Ra8+ {[%clk 0:00:01.7]} 75... Ke7 {[%clk 0:00:01.9]}
76. Re8+ {[%clk 0:00:02.6]} 76... Kd7 {[%clk 0:00:01.3]} 77. f8=Q {[%clk
0:00:03.5]} 77... Rxf8 {[%clk 0:00:01.7]} 78. Rxf8 {[%clk 0:00:04.4]} 78... Kc6
{[%clk 0:00:02]} 79. Rf5 {[%clk 0:00:04.1]} 79... b4 {[%clk 0:00:01.7]} 80. Kxg5
{[%clk 0:00:03.9]} 80... b3 {[%clk 0:00:02]} 81. Rf3 {[%clk 0:00:04.2]} 81...
Kc5 {[%clk 0:00:02]} 82. Rxb3 {[%clk 0:00:05.1]} 82... Kc4 {[%clk 0:00:02.9]}
83. Re3 {[%clk 0:00:05.4]} 1-0